bitfinex-derivatives/quotes_BTCF0:USTF0_20251206
["timestamp","ask_amount","ask_price","bid_price","bid_amount"]
[1764986892925,0.02940798,89313.0,89312.0,0.10712023]
[1764986893323,0.05746988,89326.0,89325.0,0.068463]
[1764986893625,0.00027988,89326.0,89325.0,0.08596861]
[1764986894415,0.02951988,89326.0,89325.0,0.08596861]
[1764986895427,0.05735798,89334.0,89333.0,0.068462]
[1764986895620,0.15166612,89334.0,89333.0,0.08838763]
[1764986896129,0.12735798,89334.0,89333.0,0.08838763]
[1764986896720,0.12735798,89334.0,89333.0,0.08938763]
[1764986898724,0.05735798,89334.0,89333.0,0.08938763]
[1764986899327,0.00016798,89334.0,89333.0,0.08938763]
[1764986900217,0.06006483,89355.0,89333.0,0.08938763]
[1764986900218,0.11725483,89355.0,89354.0,0.0684594]
[1764986900425,0.4814709,89355.0,89354.0,0.08596501]
[1764986901335,0.45719,89355.0,89354.0,0.08596501]
[1764986902332,0.45819,89355.0,89354.0,0.08596501]
[1764986902832,0.05819,89355.0,89354.0,0.08596501]
[1764986903329,0.05735787,89363.0,89362.0,0.0684584]
[1764986903526,0.18735787,89363.0,89362.0,0.08838403]
[1764986906234,0.18935787,89363.0,89362.0,0.08838403]
[1764986906838,0.05935787,89363.0,89362.0,0.08838403]
[1764986920137,0.08362606,89363.0,89362.0,0.08838403]
[1764986920333,0.05935787,89363.0,89362.0,0.08838403]
[1764986921235,0.08363923,89363.0,89362.0,0.08838403]
[1764986940361,0.02644923,89363.0,89362.0,0.08838403]
[1764986941158,0.05434923,89363.0,89362.0,0.08838403]
[1764986941959,0.08163923,89363.0,89362.0,0.08838403]
[1764986942161,0.08163923,89363.0,89362.0,0.07719563]
[1764986947864,0.50282743,89363.0,89362.0,0.01750561]
[1764986948062,0.56310525,89363.0,89362.0,0.01750561]
[1764986948466,0.0663802,89347.0,89346.0,0.00016787]
[1764986948765,0.47066156,89347.0,89346.0,0.00016787]
[1764986950365,0.07947136,89347.0,89346.0,0.06004789]
[1764986950666,0.05218136,89347.0,89346.0,0.06004789]
[1764986951569,0.07947136,89347.0,89346.0,0.06004789]
[1764986952461,0.08047136,89347.0,89346.0,0.06004789]
[1764986952860,0.07947136,89347.0,89346.0,0.06004789]
[1764986953062,0.07947136,89347.0,89346.0,0.06104789]
[1764986954070,0.07947136,89347.0,89346.0,0.06004789]
[1764986954270,0.07947136,89347.0,89346.0,0.06104789]
[1764986956564,0.09947136,89347.0,89346.0,0.06104789]
[1764986956763,0.41947136,89347.0,89346.0,0.06104789]
[1764986958873,0.07947136,89347.0,89346.0,0.06104789]
[1764986959078,0.02428136,89347.0,89346.0,0.06004789]
[1764986959777,0.02428136,89347.0,89346.0,0.06104789]
[1764986960479,0.0663793,89355.0,89354.0,0.05746]
[1764986960671,0.45046349,89355.0,89354.0,0.05988002]
[1764986960872,0.43927419,89355.0,89354.0,0.05988002]
[1764986961873,0.09927419,89355.0,89354.0,0.07106942]
[1764986962073,0.07927419,89355.0,89354.0,0.07106942]
[1764986962275,0.05535787,89363.0,89362.0,0.05746]
[1764986962477,0.20944547,89363.0,89362.0,0.05988002]
[1764986964180,0.21044547,89363.0,89362.0,0.05988002]
[1764986972699,0.50044547,89363.0,89362.0,0.05988002]
[1764986973901,0.02936,89357.0,89356.0,0.0557291]
[1764986974111,0.0805676,89357.0,89356.0,0.0661591]
[1764986974805,0.0805676,89357.0,89356.0,0.0824191]
[1764986975308,0.05648,89357.0,89356.0,0.0824191]
[1764986980109,0.05648,89357.0,89356.0,0.07123]
[1764986980307,0.05648,89357.0,89352.0,0.05497]
[1764986980308,0.39410019,89357.0,89352.0,0.05497]
[1764986980502,0.05648,89353.0,89352.0,0.05497]
[1764986980702,0.44176969,89353.0,89352.0,0.05497]
[1764986983308,0.03831,89349.0,89348.0,0.05497]
[1764986983513,0.05648,89347.0,89346.0,0.00016787]
[1764986983817,0.45058019,89347.0,89346.0,0.00016787]
[1764986985707,0.45158019,89347.0,89346.0,0.00016787]
[1764986986510,0.05648,89329.0,89328.0,0.0824226]
[1764986986712,0.42648,89329.0,89328.0,0.0824226]
[1764986988412,0.42648,89329.0,89328.0,0.0844226]
[1764986989007,0.42648,89329.0,89328.0,0.07323]
[1764986990909,0.05648,89329.0,89328.0,0.07323]
[1764986991208,0.05892,89336.0,89335.0,0.05561]
[1764986991409,0.05892,89336.0,89335.0,0.05803002]
[1764986991802,0.00016787,89337.0,89336.0,0.0847816]
[1764986992006,0.05967787,89337.0,89336.0,0.08720162]
[1764986993219,0.05967787,89337.0,89336.0,0.08820162]
[1764986993408,0.03011787,89337.0,89336.0,0.08820162]
[1764986998315,0.00016787,89337.0,89336.0,0.08820162]
[1764986998621,0.00016787,89337.0,89336.0,0.51820162]
[1764987000622,0.00016787,89337.0,89336.0,0.08820162]
[1764987001025,0.02845787,89337.0,89336.0,0.08820162]
[1764987001217,0.05794787,89337.0,89336.0,0.07701002]
[1764987001921,0.05794787,89337.0,89336.0,0.001]
[1764987001922,0.48794787,89337.0,89336.0,0.001]
[1764987002123,0.51151942,89337.0,89336.0,0.001]
[1764987004126,0.05778,89321.0,89320.0,0.08765137]
[1764987004328,0.09778,89321.0,89320.0,0.08765137]
[1764987005031,0.05778,89321.0,89320.0,0.07645787]
[1764987005328,0.48778,89321.0,89320.0,0.05895787]
[1764987005723,0.48778,89321.0,89320.0,0.00316787]
[1764987007522,0.48778,89321.0,89320.0,0.06195787]
[1764987008727,0.48778,89321.0,89320.0,0.03222787]
[1764987009031,0.48778,89321.0,89320.0,0.00316787]
[1764987009728,0.05778,89306.0,89305.0,0.05890151]
[1764987009934,0.46778,89306.0,89305.0,0.06132153]
[1764987010432,0.46778,89306.0,89305.0,0.05890151]
[1764987011526,0.46778,89306.0,89305.0,0.00011151]
[1764987014525,0.46978,89306.0,89305.0,0.00011151]
[1764987016234,0.46978,89306.0,89305.0,0.06132153]
[1764987016431,0.46978,89306.0,89305.0,0.07882153]
[1764987016432,0.57946,89306.0,89305.0,0.07882153]
[1764987017627,0.57846,89306.0,89305.0,0.07882153]
[1764987022038,0.95846,89306.0,89305.0,0.07640151]
[1764987022233,0.95846,89306.0,89305.0,0.00011151]
[1764987023039,0.95846,89306.0,89297.0,0.00016787]
[1764987023040,0.0689764,89298.0,89297.0,0.02922787]
[1764987023223,0.4289764,89298.0,89297.0,0.00016787]
[1764987023723,0.0689778,89287.0,89286.0,0.00028]
[1764987023929,0.4589778,89287.0,89286.0,0.00028]
[1764987024136,0.4589778,89287.0,89286.0,0.02934]
[1764987024137,0.45908553,89287.0,89286.0,0.02934]
[1764987024537,0.45908553,89287.0,89286.0,0.00028]
[1764987025039,0.45908553,89287.0,89286.0,0.00228]
[1764987025640,0.45908553,89287.0,89286.0,0.00028]
[1764987026843,0.05778,89281.0,89280.0,0.02906]
[1764987027044,0.46778,89281.0,89280.0,0.05879]
[1764987028347,0.46778,89281.0,89280.0,0.05979]
[1764987028941,0.46778,89281.0,89280.0,0.03006]
[1764987029237,0.46778,89281.0,89280.0,0.001]
[1764987035648,0.05729,89279.0,89278.0,0.00016797]
[1764987035946,0.44729,89279.0,89278.0,0.00016797]
[1764987036740,0.44729,89279.0,89267.0,0.0112002]
[1764987036741,0.05729,89275.0,89267.0,0.0112002]
[1764987036941,0.42729,89275.0,89267.0,0.0112002]
[1764987038447,0.42729,89275.0,89274.0,0.0907]
[1764987039438,0.42729,89275.0,89274.0,0.11797]
[1764987040837,0.42729,89275.0,89274.0,0.0907]
[1764987042350,0.42729,89275.0,89274.0,0.11797]
[1764987042846,0.06859553,89287.0,89286.0,0.05626]
[1764987043043,0.97194535,89287.0,89286.0,0.05626]
[1764987044142,0.97194535,89287.0,89286.0,0.02727]
[1764987056055,0.0702485,89281.0,89280.0,0.07248]
[1764987056254,0.45379832,89281.0,89280.0,0.07248]
[1764987056653,0.05905,89276.0,89275.0,0.05621]
[1764987056851,0.05905,89275.0,89274.0,0.0887]
[1764987057051,0.48259982,89275.0,89274.0,0.0887]
[1764987057866,0.48271133,89275.0,89274.0,0.0887]
[1764987058058,0.48271133,89275.0,89274.0,0.11639]
[1764987058257,0.48271133,89275.0,89274.0,0.0897]
[1764987062774,0.48271133,89275.0,89274.0,0.11888]
[1764987063963,0.48271133,89275.0,89274.0,0.0897]
[1764987067277,0.48271133,89275.0,89274.0,0.11888]
[1764987067573,0.48271133,89275.0,89274.0,0.0897]
[1764987069769,0.48271133,89275.0,89274.0,0.14862]
[1764987070470,1.00243133,89275.0,89274.0,0.14862]
[1764987070872,1.00543133,89275.0,89274.0,0.14762]
[1764987072381,1.00243133,89275.0,89274.0,0.14762]
[1764987072678,1.00443133,89275.0,89274.0,0.14762]
[1764987078795,1.00443133,89275.0,89274.0,0.0887]
[1764987082584,0.02795,89259.0,89258.0,0.06029762]
[1764987082787,1.00617151,89259.0,89258.0,0.05892]
[1764987083901,0.00011151,89259.0,89258.0,0.05892]
[1764987084197,0.00011151,89259.0,89258.0,0.44892]
[1764987084396,0.08819151,89259.0,89258.0,0.44892]
[1764987084790,0.00011151,89259.0,89258.0,0.44892]
[1764987086699,0.00011151,89259.0,89258.0,0.44992]
[1764987089605,0.00011151,89259.0,89258.0,0.44892]
[1764987089900,0.00011151,89259.0,89258.0,0.44992]
[1764987091795,0.00016797,89267.0,89266.0,0.0683904]
[1764987092001,0.00016797,89267.0,89266.0,0.07081042]
[1764987093202,0.09917052,89308.0,89307.0,0.02864]
[1764987093404,0.48153405,89308.0,89307.0,0.05665]
[1764987094196,0.47033885,89308.0,89307.0,0.05665]
[1764987094400,0.08431885,89308.0,89307.0,0.05665]
[1764987094699,0.08774,89308.0,89307.0,0.05665]
[1764987094904,0.11602,89308.0,89307.0,0.05665]
[1764987095608,0.52004797,89316.0,89315.0,0.0846342]
[1764987095609,0.05618797,89316.0,89315.0,0.0846342]
[1764987095795,0.45044487,89316.0,89315.0,0.0846342]
[1764987096294,0.42618797,89316.0,89315.0,0.0846342]
[1764987096805,0.05618797,89316.0,89315.0,0.0846342]
[1764987097704,0.05818797,89316.0,89315.0,0.0846342]
[1764987098090,0.00216797,89316.0,89315.0,0.0846342]
[1764987098296,0.05629988,89326.0,89325.0,0.084633]
[1764987099299,0.43629988,89326.0,89325.0,0.084633]
[1764987099496,0.00027988,89326.0,89325.0,0.084633]
[1764987099898,0.00327988,89326.0,89325.0,0.084633]
[1764987100298,0.00016797,89334.0,89333.0,0.067842]
[1764987100495,0.05602,89350.0,89349.0,0.05665]
[1764987100796,0.47602,89350.0,89349.0,0.05665]
[1764987101407,0.05602,89350.0,89349.0,0.05665]
[1764987101609,0.23602,89350.0,89349.0,0.05665]
[1764987102504,0.05618797,89358.0,89357.0,0.05665]
[1764987102705,0.05618797,89358.0,89357.0,0.067839]
[1764987102706,0.00016797,89358.0,89357.0,0.067839]
[1764987103104,0.02790797,89358.0,89357.0,0.067839]
[1764987103296,0.05618797,89358.0,89357.0,0.067839]
[1764987103699,0.05918797,89358.0,89357.0,0.067839]
[1764987107710,0.05918797,89358.0,89351.0,0.0678397]
[1764987107711,0.39316797,89358.0,89351.0,0.0678397]
[1764987108013,0.05602,89350.0,89349.0,0.05681787]
[1764987108214,0.08602,89350.0,89349.0,0.05923789]
[1764987109414,0.43602,89350.0,89349.0,0.05923789]
[1764987109806,0.43702,89350.0,89349.0,0.05923789]
[1764987110816,0.43702,89350.0,89349.0,0.02880787]
[1764987111117,0.43702,89350.0,89349.0,0.05752787]
[1764987112214,0.05702,89350.0,89349.0,0.05752787]
[1764987112719,0.02874,89350.0,89349.0,0.05752787]
[1764987112919,0.001,89350.0,89349.0,0.05752787]
[1764987113321,0.03011,89350.0,89349.0,0.05752787]
[1764987115224,0.001,89350.0,89349.0,0.05752787]
[1764987118723,0.05949,89350.0,89349.0,0.05752787]
[1764987120321,0.001,89350.0,89349.0,0.05752787]
[1764987122623,0.00016797,89358.0,89357.0,0.068459]
[1764987122820,0.00016797,89358.0,89357.0,0.07087902]
[1764987123725,0.02493109,89358.0,89357.0,0.07087902]
[1764987124321,0.08162109,89358.0,89357.0,0.07087902]
[1764987124521,0.48162109,89358.0,89357.0,0.07087902]
[1764987124722,0.45450109,89358.0,89357.0,0.07087902]
[1764987125122,0.45550109,89358.0,89357.0,0.07087902]
[1764987125936,0.23550109,89358.0,89357.0,0.07087902]
[1764987126128,0.02593109,89358.0,89357.0,0.07087902]
[1764987127228,0.08262109,89358.0,89357.0,0.05969002]
[1764987127423,0.18262109,89358.0,89357.0,0.05727]
[1764987128530,0.44262109,89358.0,89357.0,0.05727]
[1764987129438,0.44262109,89358.0,89349.0,0.00016787]
[1764987129439,0.05669,89353.0,89349.0,0.00016787]
[1764987129629,0.05669,89350.0,89349.0,0.00016787]
[1764987129824,0.11145312,89350.0,89349.0,0.00258789]
[1764987130134,0.11145312,89350.0,89349.0,0.00016787]
[1764987130332,0.17168844,89350.0,89349.0,0.00016787]
[1764987130533,0.17168844,89350.0,89349.0,0.05743787]
[1764987131340,0.11145312,89350.0,89349.0,0.05743787]
[1764987132227,0.08145312,89350.0,89349.0,0.05743787]
[1764987134632,0.11698627,89350.0,89349.0,0.05743787]
[1764987134938,0.14174939,89350.0,89349.0,0.05743787]
[1764987135437,0.08145312,89350.0,89349.0,0.05743787]
[1764987141447,0.27145312,89350.0,89349.0,0.05743787]
[1764987141647,0.51145312,89350.0,89349.0,0.05743787]
[1764987141851,0.28145312,89350.0,89349.0,0.05743787]
[1764987147247,0.02476312,89350.0,89349.0,0.05743787]
[1764987153356,0.05275312,89350.0,89349.0,0.05743787]
[1764987156053,0.08264312,89350.0,89349.0,0.05743787]
[1764987156356,0.45264312,89350.0,89349.0,0.02797787]
[1764987156858,0.45264312,89350.0,89349.0,0.05669787]
[1764987157457,0.45264312,89350.0,89349.0,0.02797787]
[1764987157660,0.51293939,89350.0,89349.0,0.00016787]
[1764987158158,0.45264312,89350.0,89349.0,0.00016787]
[1764987161153,0.46353312,89350.0,89349.0,0.00016787]
[1764987161352,0.05788,89337.0,89336.0,0.0690816]
[1764987161558,0.43264312,89337.0,89336.0,0.0690816]
[1764987162448,0.43264312,89337.0,89336.0,0.0700816]
[1764987162643,0.43264312,89337.0,89336.0,0.05889]
[1764987163858,0.14264312,89337.0,89336.0,0.05889]
[1764987164555,0.14264312,89337.0,89336.0,0.05789]
[1764987164761,0.14264312,89337.0,89336.0,0.05889]
[1764987165252,0.14264312,89337.0,89336.0,0.05789]
[1764987167454,0.08264312,89337.0,89336.0,0.05789]
[1764987168058,0.08264312,89337.0,89336.0,0.05889]
[1764987174165,0.05788,89337.0,89336.0,0.05889]
[1764987174968,0.08235767,89337.0,89336.0,0.05889]
[1764987175957,0.05246767,89337.0,89336.0,0.05889]
[1764987176158,0.0111906,89344.0,89336.0,0.001]
[1764987176366,0.2782806,89344.0,89343.0,0.05835002]
[1764987176566,0.30275773,89344.0,89343.0,0.05835002]
[1764987177367,0.29156713,89344.0,89343.0,0.05835002]
[1764987185172,0.29156713,89344.0,89343.0,0.05593]
[1764987185376,0.24566783,89344.0,89336.0,0.0111916]
[1764987185569,0.24566783,89344.0,89335.0,0.07301]
[1764987185570,0.26705,89344.0,89343.0,0.05864002]
[1764987185870,0.291531,89344.0,89343.0,0.05864002]
[1764987186072,0.291531,89344.0,89343.0,0.05622]
[1764987193476,0.081531,89344.0,89343.0,0.05622]
[1764987193771,0.081531,89344.0,89334.0,0.16542569]
[1764987193772,0.05705,89329.0,89319.0,0.08062047]
[1764987193970,0.05705,89329.0,89303.0,0.0001174]
[1764987193971,0.01335,89320.0,89304.0,0.05622]
[1764987194174,0.05705,89305.0,89304.0,0.05622]
[1764987194364,0.161531,89305.0,89304.0,0.05622]
[1764987194673,0.50207077,89305.0,89304.0,0.05622]
[1764987196085,0.25207077,89305.0,89304.0,0.05622]
[1764987196768,0.19502077,89305.0,89304.0,0.05622]
[1764987196987,0.05721796,89313.0,89312.0,0.05622]
[1764987197177,0.19252142,89313.0,89312.0,0.05622]
[1764987197372,0.16721796,89313.0,89312.0,0.05622]
[1764987197678,0.05721796,89313.0,89312.0,0.05622]
[1764987198273,0.05721796,89313.0,89312.0,0.05722]
[1764987198681,0.05721796,89313.0,89312.0,0.05622]
[1764987198975,0.05721796,89313.0,89312.0,0.05722]
[1764987200772,0.02820796,89313.0,89312.0,0.05722]
[1764987201783,0.05721796,89313.0,89312.0,0.05722]
[1764987202177,0.05721796,89313.0,89312.0,0.05622]
[1764987202479,0.05721796,89313.0,89312.0,0.05722]
[1764987204284,0.05721796,89313.0,89312.0,0.05622]
[1764987204488,0.05721796,89313.0,89312.0,0.05722]
[1764987205984,0.05721796,89313.0,89312.0,0.05622]
[1764987206187,0.05721796,89313.0,89312.0,0.05722]
[1764987206679,0.00016796,89313.0,89312.0,0.47722]
[1764987206882,0.00016796,89313.0,89312.0,0.09722]
[1764987209884,0.00016796,89313.0,89312.0,0.11387]
[1764987212083,0.0111929,89326.0,89312.0,0.11387]
[1764987212084,0.0700425,89329.0,89328.0,0.07207]
[1764987212276,0.40531382,89329.0,89328.0,0.07207]
[1764987213176,0.40631382,89329.0,89328.0,0.07207]
[1764987218988,0.001,89329.0,89328.0,0.07207]
[1764987219384,0.03005,89329.0,89328.0,0.07207]
[1764987219690,0.05985,89329.0,89328.0,0.07207]
[1764987225490,0.08523881,89329.0,89328.0,0.07207]
[1764987227088,0.02638881,89329.0,89328.0,0.07207]
[1764987227293,0.001,89329.0,89328.0,0.07207]
[1764987229997,0.03005,89329.0,89328.0,0.07207]
[1764987230293,0.03015,89329.0,89328.0,0.07207]
[1764987230993,0.00016796,89337.0,89336.0,0.07488]
[1764987231193,0.00016796,89337.0,89336.0,0.07730002]
[1764987231394,0.02555833,89337.0,89336.0,0.07730002]
[1764987231587,0.05470833,89337.0,89336.0,0.08849162]
[1764987232699,0.05570833,89337.0,89336.0,0.08849162]
[1764987232996,0.03031796,89337.0,89336.0,0.08849162]
[1764987233896,0.00116796,89337.0,89336.0,0.08849162]
[1764987234798,0.00116796,89337.0,89336.0,0.09983959]
[1764987235803,0.00116796,89337.0,89336.0,0.08849162]
[1764987236098,0.03031796,89337.0,89336.0,0.08849162]
[1764987236899,0.03031796,89337.0,89336.0,0.09957817]
[1764987237400,0.03031796,89337.0,89336.0,0.08849162]
[1764987238702,0.00116796,89337.0,89336.0,0.09970495]
[1764987245520,0.02655839,89337.0,89336.0,0.09970495]
[1764987248425,0.08513839,89337.0,89336.0,0.09970495]
[1764987248722,0.05619839,89337.0,89336.0,0.09970495]
[1764987248923,0.02655839,89337.0,89336.0,0.09970495]
[1764987249127,0.08513839,89337.0,89336.0,0.07086162]
[1764987249330,0.47513839,89337.0,89336.0,0.0387716]
[1764987249624,0.47513839,89337.0,89336.0,0.05558]
[1764987250123,0.47513839,89337.0,89336.0,0.0726]
[1764987252011,0.02655839,89337.0,89336.0,0.0726]
[1764987255530,0.00116796,89337.0,89336.0,0.0726]
[1764987256216,0.0111893,89355.0,89336.0,0.0726]
[1764987256423,0.20858,89355.0,89354.0,0.05729]
[1764987256622,0.23360282,89355.0,89354.0,0.05729]
[1764987258930,0.02502282,89355.0,89354.0,0.05729]
[1764987259832,0.02502282,89355.0,89354.0,0.05829]
[1764987262734,0.00016796,89363.0,89362.0,0.0684784]
[1764987262932,0.43517246,89363.0,89362.0,0.07089842]
[1764987263234,0.49375246,89363.0,89362.0,0.07089842]
[1764987263435,0.02517246,89363.0,89362.0,0.07089842]
[1764987264638,0.05481246,89363.0,89362.0,0.07089842]
[1764987268433,0.08375246,89363.0,89362.0,0.07089842]
[1764987268938,0.51375246,89363.0,89362.0,0.07089842]
[1764987270941,0.51375246,89363.0,89355.0,0.01702]
[1764987270942,0.05516,89356.0,89355.0,0.0853292]
[1764987271142,0.41516,89356.0,89355.0,0.0853292]
[1764987273245,0.41516,89356.0,89355.0,0.0863292]
[1764987275144,0.05516,89356.0,89355.0,0.0863292]
[1764987275345,0.02717,89356.0,89355.0,0.0863292]
[1764987276644,0.05516,89356.0,89355.0,0.0863292]
[1764987278649,0.05532796,89363.0,89362.0,0.0683084]
[1764987278848,0.50030556,89363.0,89362.0,0.0683084]
[1764987280946,0.20030556,89363.0,89362.0,0.0683084]
[1764987283652,0.02514556,89363.0,89362.0,0.0683084]
[1764987284051,0.08030556,89363.0,89362.0,0.0683084]
[1764987284853,0.08030556,89363.0,89360.0,0.01756]
[1764987284854,0.05516,89356.0,89355.0,0.0853292]
[1764987285254,0.07971519,89356.0,89355.0,0.0853292]
[1764987286947,0.07971519,89356.0,89355.0,0.0863292]
[1764987287343,0.42971519,89356.0,89355.0,0.0404592]
[1764987287548,0.42971519,89356.0,89355.0,0.02927]
[1764987287749,0.42971519,89356.0,89355.0,0.05812]
[1764987288949,0.42971519,89356.0,89355.0,0.001]
[1764987289954,0.0682802,89347.0,89346.0,0.00016796]
[1764987290155,0.44283539,89347.0,89346.0,0.00016796]
[1764987290450,0.44283539,89347.0,89346.0,0.03179798]
[1764987290650,0.44283539,89347.0,89346.0,0.00016796]
[1764987291061,0.44283539,89347.0,89346.0,0.06042796]
[1764987291256,0.44283539,89347.0,89346.0,0.03137796]
[1764987292954,0.44283539,89347.0,89346.0,0.06042796]
[1764987293151,0.44283539,89347.0,89346.0,0.03137796]
[1764987296565,0.44283539,89347.0,89346.0,0.00216796]
[1764987303364,0.20283539,89347.0,89346.0,0.05907796]
[1764987305474,0.1782802,89347.0,89346.0,0.05907796]
[1764987305978,0.05709,89347.0,89346.0,0.05907796]
[1764987306275,0.05813,89347.0,89346.0,0.05907796]
[1764987315578,0.08258073,89347.0,89346.0,0.05907796]
[1764987317082,0.08258073,89347.0,89346.0,0.07609796]
[1764987333796,0.47258073,89347.0,89346.0,0.07609796]
[1764987336295,0.47258073,89347.0,89346.0,0.05907796]
[1764987340902,0.47258073,89347.0,89346.0,0.00216796]
[1764987344204,0.99210073,89347.0,89346.0,0.00216796]
[1764987346404,0.99210073,89347.0,89346.0,0.05929796]
[1764987349302,0.60210073,89347.0,89346.0,0.07563796]
[1764987349507,0.77210073,89347.0,89346.0,0.07563796]
[1764987352112,0.02445073,89347.0,89346.0,0.07563796]
[1764987352308,0.57585,89354.0,89353.0,0.0683195]
[1764987352506,0.96025533,89354.0,89353.0,0.0683195]
[1764987354710,0.96025533,89354.0,89353.0,0.0693195]
[1764987355214,0.96025533,89354.0,89353.0,0.0400195]
[1764987355812,0.96025533,89354.0,89353.0,0.0685695]
[1764987357012,0.96025533,89354.0,89353.0,0.0400195]
[1764987357314,0.96025533,89354.0,89353.0,0.0121895]
[1764987357815,0.96025533,89354.0,89353.0,0.0410295]
[1764987359312,0.96025533,89354.0,89353.0,0.0695795]
[1764987361013,0.96025533,89354.0,89353.0,0.05839]
[1764987364219,0.44073533,89354.0,89353.0,0.05839]
[1764987364411,0.96021533,89354.0,89353.0,0.05839]
[1764987373329,0.97140473,89354.0,89353.0,0.05839]
[1764987376826,0.96021533,89354.0,89353.0,0.05839]
[1764987381927,0.96017533,89354.0,89353.0,0.001]
[1764987383629,0.96017533,89354.0,89353.0,0.02894]
[1764987384630,0.0111927,89327.0,89322.0,0.0177]
[1764987384936,0.0111932,89324.0,89322.0,0.0177]
[1764987385232,0.02440533,89323.0,89322.0,0.0177]
[1764987385428,0.44440533,89323.0,89322.0,0.0177]
[1764987385627,0.44440533,89323.0,89316.0,0.0177]
[1764987385834,0.02440533,89322.0,89316.0,0.0177]
[1764987386041,0.40440533,89322.0,89316.0,0.0177]
[1764987386331,0.011194,89317.0,89316.0,0.0177]
[1764987386527,0.391194,89317.0,89316.0,0.0177]
[1764987386727,0.41559933,89317.0,89316.0,0.0177]
[1764987387432,0.41559933,89317.0,89314.0,0.00016786]
[1764987387634,0.0111942,89315.0,89314.0,0.00016786]
[1764987387934,0.93503953,89315.0,89314.0,0.00016786]
[1764987388835,0.93703953,89315.0,89314.0,0.00016786]
[1764987395636,0.9126342,89315.0,89314.0,0.00016786]
[1764987396937,0.0111955,89305.0,89303.0,0.0001174]
[1764987397242,0.3711955,89305.0,89303.0,0.0001174]
[1764987399036,0.0111966,89296.0,89295.0,0.00016797]
[1764987399343,0.9209566,89296.0,89295.0,0.00016797]
[1764987400044,0.921074,89296.0,89295.0,0.00016797]
[1764987400635,0.921074,89296.0,89295.0,0.07766799]
[1764987400943,0.921074,89296.0,89295.0,0.07524797]
[1764987401144,0.922074,89296.0,89295.0,0.07524797]
[1764987406150,0.9109174,89296.0,89295.0,0.07524797]
[1764987406350,0.9509174,89296.0,89295.0,0.07524797]
[1764987407441,0.9499174,89296.0,89295.0,0.07524797]
[1764987409340,0.9499174,89296.0,89295.0,0.04619797]
[1764987410253,0.9499174,89296.0,89295.0,0.07524797]
[1764987411260,0.9509174,89296.0,89295.0,0.07524797]
[1764987413462,0.97554423,89296.0,89295.0,0.07524797]
[1764987416559,0.97554423,89296.0,89295.0,0.01757797]
[1764987416761,0.97554423,89296.0,89295.0,0.00016797]
[1764987417959,0.97554423,89296.0,89286.0,0.00028]
[1764987417960,0.0111978,89287.0,89286.0,0.00028]
[1764987418260,0.0111978,89287.0,89280.0,0.04604]
[1764987418261,0.91446683,89287.0,89280.0,0.04604]
[1764987418465,0.02462683,89286.0,89280.0,0.07598]
[1764987418667,0.0111985,89281.0,89280.0,0.07598]
[1764987418853,0.44594085,89281.0,89280.0,0.07598]
[1764987420572,0.44594085,89281.0,89280.0,0.07698]
[1764987420769,0.44599775,89281.0,89280.0,0.07698]
[1764987435280,0.54463925,89281.0,89280.0,0.07698]
[1764987436675,0.00016797,89289.0,89288.0,0.0754]
[1764987436875,0.78000797,89289.0,89288.0,0.07782002]
[1764987437170,0.78091797,89289.0,89288.0,0.07782002]
[1764987437578,0.78182797,89289.0,89288.0,0.07782002]
[1764987439986,0.52182797,89289.0,89288.0,0.07782002]
[1764987440998,0.56182797,89289.0,89288.0,0.07782002]
[1764987445084,0.56091797,89289.0,89288.0,0.07782002]
[1764987445481,0.52091797,89289.0,89288.0,0.07782002]
[1764987445996,0.52182797,89289.0,89288.0,0.07782002]
[1764987450994,0.00016797,89289.0,89288.0,0.50782002]
[1764987451194,0.00016797,89289.0,89288.0,0.28782002]
[1764987453293,0.00016797,89289.0,89288.0,0.28882002]
[1764987455688,0.51984,89306.0,89305.0,0.05672]
[1764987455689,0.52166,89306.0,89305.0,0.05672]
[1764987455893,0.52166,89306.0,89305.0,0.0679155]
[1764987455894,0.57166,89306.0,89305.0,0.0679155]
[1764987456896,0.57266,89306.0,89305.0,0.0679155]
[1764987457102,0.001,89306.0,89305.0,0.0679155]
[1764987457996,0.00198797,89314.0,89313.0,0.0679145]
[1764987461107,0.41198797,89314.0,89313.0,0.0679145]
[1764987461604,0.00107797,89314.0,89313.0,0.0679145]
[1764987461797,0.00198797,89314.0,89313.0,0.0679145]
[1764987466307,0.43198797,89314.0,89313.0,0.0679145]
[1764987466608,0.00016797,89314.0,89313.0,0.0679145]
[1764987467704,0.00016797,89314.0,89313.0,0.0689145]
[1764987468112,0.00016797,89314.0,89313.0,0.4389145]
[1764987469311,0.00016797,89314.0,89313.0,0.4379145]
[1764987469610,0.00027988,89326.0,89325.0,0.084363]
[1764987469808,0.0130113,89339.0,89338.0,0.05672]
[1764987470004,0.44742412,89339.0,89338.0,0.05672]
[1764987471100,0.43623282,89339.0,89338.0,0.05672]
[1764987471920,0.05532282,89339.0,89338.0,0.05672]
[1764987472210,0.02732282,89339.0,89338.0,0.05672]
[1764987472408,0.002,89339.0,89338.0,0.05672]
[1764987472810,0.08342,89346.0,89345.0,0.05672]
[1764987473014,0.3378222,89346.0,89345.0,0.05672]
[1764987474318,0.3408222,89346.0,89345.0,0.05672]
[1764987480025,0.3399122,89346.0,89345.0,0.05672]
[1764987480225,0.1099122,89346.0,89345.0,0.05672]
[1764987482129,0.1090022,89346.0,89345.0,0.05672]
[1764987482418,0.003,89346.0,89345.0,0.05672]
[1764987483328,0.00209975,89366.0,89365.0,0.05608]
[1764987483517,0.39209975,89366.0,89365.0,0.05608]
[1764987483718,0.4164885,89366.0,89365.0,0.05608]
[1764987485723,0.00182,89361.0,89360.0,0.07347]
[1764987485924,0.37620875,89361.0,89360.0,0.07347]
[1764987486835,0.37620875,89361.0,89360.0,0.07447]
[1764987489822,0.37620875,89361.0,89360.0,0.001]
[1764987491334,0.00182,89358.0,89357.0,0.00016787]
[1764987491534,0.35182,89358.0,89357.0,0.00016787]
[1764987491735,0.37620875,89358.0,89357.0,0.00016787]
[1764987494836,0.37620875,89358.0,89357.0,0.05866789]
[1764987496532,0.05620875,89358.0,89357.0,0.05866789]
[1764987496731,0.05438875,89358.0,89357.0,0.05866789]
[1764987497230,0.05529875,89358.0,89357.0,0.05866789]
[1764987497924,0.05620875,89358.0,89357.0,0.05866789]
[1764987498128,0.05620875,89358.0,89357.0,0.05966789]
[1764987499333,0.05620875,89358.0,89357.0,0.00116787]
[1764987499334,0.45739765,89358.0,89357.0,0.00116787]
[1764987501037,0.45739765,89358.0,89357.0,0.00016787]
[1764987506142,0.45739765,89358.0,89357.0,0.05624787]
[1764987507446,0.51771347,89358.0,89357.0,0.05624787]